[Event "Norway Chess 2025"]
[Site "Stavanger, Norway"]
[Date "2025.05.28"]
[Round "3.2"]
[White "Carlsen, Magnus"]
[Black "Wei, Yi"]
[Result "1/2-1/2"]
[ECO "E05"]
[WhiteElo "2837"]
[BlackElo "2758"]
[Annotator "Chess.com"]
[PlyCount "101"]
[EventDate "2025.??.??"]
[TimeControl "40/7200:0"]

{[%evp 0,101,19,16,18,4,4,4,4,-34,13,13,13,-6,14,-7,3,-15,-2,-2,-2,-7,4,-28,5,-8,-41,-1,7,-37,-2,0,0,-13,1,1,36,46,46,46,53,41,41,42,26,38,48,66,72,53,72,75,63,46,38,38,38,33,33,33,44,33,43,16,0,12,1,12,21,15,58,43,45,17,36,33,33,39,33,0,0,0,33,-12,0,4,4,4,32,0,0,0,0,0,0,0,0,0,0,0,0,0,0,0]} 1. d4 Nf6 2. c4 e6 3. Nf3 d5 4. g3 Be7 5. Bg2 O-O 6. O-O dxc4 7. Qc2 a6 8. a4 Bd7 9. Qxc4 Bc6 10. Bg5 Bd5 11. Qc2 Be4 12. Qc1 Nc6 13. e3 Bb4 14. Qd1 h6 15. Bxf6 Qxf6 16. Nc3 Bxc3 17. bxc3 Na5 18. Ne5 Bxg2 19. Kxg2 Rfd8 20. Qb1 Rac8 21. Rd1 c5 22. Qb6 cxd4 23. cxd4 Rd5 24. Rdc1 Qd8 25. Qb4 Rc7 26. Rc3 $6 {A move that seems to give away much of White's advantage.} (26. h4 {or other waiting moves, and Carlsen remains clearly better, though there's no obvious knockout blow.}) 26... Rxc3 $1 27. Qxc3 Rd6 $1 {This square is now available after the queen was deflected from b4.} 28. Rb1 f6 29. Ng6 Qe8 30. Qc2 Kf7 31. h4 Qc6+ 32. Qxc6 Rxc6 33. h5 Rc4 34. Kf3 Ke8 35. Nf4 Ke7 36. g4 $6 (36. Nd3 $1 {and White preserves more chances.} e5 (36... Rxa4 37. Nc5 Ra2 38. Rb6 e5 39. d5 Rd2 40. e4 Kf8 {illustrates the kind of chances Carlsen could have got.}) 37. Ke4 {In the game the e5-pawn attacks the knight, so there's no option to play like this.}) 36... e5 37. Ng6+ Ke6 38. dxe5 fxe5 39. Rb6+ Rc6 40. Rb2 Rc4 41. Ra2 Nb3 42. Nh4 Nc5 43. Nf5 Rxa4 44. Rc2 b6 45. Rd2 Ne4 46. Nxg7+ Kf6 47. Rd7 {Black has powerful connected passed pawns on the queenside, so Carlsen decides it's time to shut things down.} Ng5+ 48. Kg3 Ne4+ 49. Kf3 Ng5+ 50. Kg3 Ne4+ 51. Kf3 1/2-1/2

[Event "Tata Steel-A 80th"]
[Site "Wijk aan Zee"]
[Date "2018.01.15"]
[Round "3"]
[White "Carlsen, Magnus"]
[Black "Wei, Yi"]
[Result "1/2-1/2"]
[ECO "E06"]
[WhiteElo "2834"]
[BlackElo "2743"]
[PlyCount "92"]
[EventDate "2018.01.13"]
[EventType "tourn"]
[EventRounds "13"]
[EventCountry "NED"]
[EventCategory "20"]
[SourceTitle "CBM 183"]
[Source "ChessBase"]
[SourceDate "2018.03.14"]
[SourceVersion "1"]
[SourceVersionDate "2018.03.14"]
[SourceQuality "1"]
[TimeControl "40/6000+30:20/3000+30:900+30"]

1. d4 {[%emt 0:00:00]} Nf6 {[%emt 0:00:16]} 2. c4 {[%emt 0:00:50]} e6 {[%emt 0:00:15]} 3. g3 {[%emt 0:00:48]} d5 {[%emt 0:00:25]} 4. Bg2 {[%emt 0:00:07]} Be7 {[%emt 0:00:33]} 5. Nf3 {[%emt 0:00:11]} O-O {[%emt 0:00:18]} 6. Qc2 {[%emt 0:00:16]} c5 {[%emt 0:01:18]} 7. O-O {[%emt 0:00:27]} cxd4 {[%emt 0:09:56]} 8. Nxd4 {[%emt 0:00:27]} Na6 {[%emt 0:00:12]} 9. cxd5 {[%emt 0:08:56]} Nb4 {[%emt 0:00:19]} 10. Qb3 {[%emt 0:02:10]} e5 {[%emt 0:00:58]} 11. Nb5 {[%emt 0:06:17]} Nbxd5 {[%emt 0:00:27]} 12. N1c3 {[%emt 0:02:42]} Be6 {[%emt 0:02:21]} 13. Nxd5 {[%emt 0:00:20]} Bxd5 {[%emt 0:00:33]} 14. Bxd5 {[%emt 0:00:12]} Qxd5 {[%emt 0:00:06]} 15. Bg5 {[%emt 0:00:21]} Qxb3 {[%emt 0:15:51]} 16. axb3 {[%emt 0:00:02]} a6 {[%emt 0:00:22]} 17. Nc3 {[%emt 0:00:38]} h6 $146 {[%emt 0:02:44]} ({RR} 17... Rac8 18. Rfd1 Rfd8 19. Rxd8+ Bxd8 20. Rd1 Kf8 21. Bxf6 Bxf6 22. Rd7 Rb8 23. Kg2 Ke8 24. Rd3 Rd8 25. Nd5 Rd6 26. e4 Bd8 27. Kf3 Bb6 28. Rc3 Kd8 29. Ke2 Bd4 30. Rc2 Rc6 31. Rxc6 bxc6 32. Nb4 {Artemiev,V (2669)-Lysyj,I (2668) Sochi 2016 ½-½ (40)}) 18. Bxf6 {[%emt 0:00:16]} Bxf6 {[%emt 0:00:08]} 19. Nd5 {[%emt 0:01:24]} Rac8 {[%emt 0:01:28]} 20. Rac1 {[%emt 0:02:14]} e4 {[%emt 0:08:15]} 21. Rc4 {[%emt 0:00:59]} Rxc4 {[%emt 0:03:47]} 22. bxc4 {[%emt 0:00:01]} Bxb2 {[%emt 0:08:30]} 23. Rb1 {[%emt 0:00:10]} Ba3 {[%emt 0:00:04]} 24. Rxb7 {[%emt 0:00:14]} Rc8 {[%emt 0:00:12]} 25. Ra7 {[%emt 0:02:45]} Rxc4 {[%emt 0:04:35]} 26. Rxa6 {[%emt 0:00:08]} Bf8 {[%emt 0:05:13]} 27. Ra8 {[%emt 0:05:36]} g6 {[%emt 0:00:05]} 28. e3 {[%emt 0:00:44]} Kg7 {[%emt 0:00:39]} 29. Kg2 {[%emt 0:01:00]} h5 {[%emt 0:00:46]} 30. h3 {[%emt 0:00:36]} Bd6 {[%emt 0:03:06]} 31. Rd8 {[%emt 0:03:26]} Be5 {[%emt 0:00:25]} 32. Re8 {[%emt 0:01:12]} Bd6 {[%emt 0:00:06]} 33. Rd8 {[%emt 0:00:40]} Be5 {[%emt 0:00:06]} 34. g4 {[%emt 0:00:57]} hxg4 {[%emt 0:00:14]} 35. hxg4 {[%emt 0:00:03]} Rc5 {[%emt 0:07:13]} 36. g5 {[%emt 0:00:48]} Rb5 {[%emt 0:01:08]} 37. Kh3 {[%emt 0:00:29]} Rc5 {[%emt 0:00:45]} 38. Ne7 {[%emt 0:01:02]} Rc2 {[%emt 0:06:06]} 39. Kg2 {[%emt 0:00:32]} Rc7 {[%emt 0:00:10]} 40. Rg8+ {[%emt 0:00:00]} Kh7 {[%emt 0:00:04]} 41. Re8 {[%emt 0:00:47]} Rc5 {[%emt 0:00:07]} 42. Rc8 {[%emt 0:01:17]} Rb5 {[%emt 0:02:27]} 43. Rf8 {[%emt 0:01:06]} Kg7 {[%emt 0:00:11]} 44. Rg8+ {[%emt 0:00:08]} Kh7 {[%emt 0:00:04]} 45. Rf8 {[%emt 0:00:12]} Kg7 {[%emt 0:00:06]} 46. Rg8+ {[%emt 0:00:13]} Kh7 {[%emt 0:00:05]} 1/2-1/2